[Event "GER-ch Youth-U18 2022"]
[Site "Willingen"]
[Date "2022.06.05"]
[Round "2.4"]
[White "Musiolik, David"]
[Black "von Mettenheim, Johannes"]
[Result "0-1"]
[ECO "A06"]
[WhiteElo "2220"]
[BlackElo "2176"]
[Annotator "TA"]
[PlyCount "90"]
[EventDate "2022.06.05"]
[EventType "swiss"]
[EventRounds "9"]
[EventCountry "GER"]
[SourceTitle "playchess.com"]
[Source "ChessBase"]
[SourceQuality "1"]
[TimeControl "40/4500+30:900+30"]

{[%evp 11,90,0,15,14,9,25,27,0,13,-36,22,23,37,23,27,7,72,33,27,31,99,99,165,178,175,169,186,148,321,304,304,320,321,135,345,-9,-8,-8,-7,-5,-6,-20,-10,-15,-13,-116,-101,-233,-92,-271,-271,-256,-258,-1040,-1024,-1110,-275,-477,-470,-29989,-29990,-29990,-4802,-1820,-1048,-987,-987,-945,-826,-811,-811,-29979,-29980,-29979,-29980,-29991,-29992,-29992,-29993,-29996,-29997]} 1. Nf3 {[%emt 0:00:00]} d5 {[%emt 0:00:00]} 2. e3 {[%emt 0:00:00]} Nf6 {[%emt 0:00:00]} 3. c4 {[%emt 0:00:00]} e6 {[%emt 0:00:00]} 4. Nc3 {[%emt 0:00:00]} Be7 {[%emt 0:00:00]} 5. b3 {[%emt 0:00:00]} O-O {[%emt 0:00:00]} 6. Bb2 {[%emt 0:00:00]} b6 {[%emt 0:00:00]} 7. cxd5 {[%emt 0:00:00] A13: English Opening: 1...e6.} exd5 {[%emt 0:00:00]} 8. d4 {[%emt 0:00:00]} Re8 {[%emt 0:00:00] [#]} 9. Ne5 $146 {[%emt 0:05:27] White has an edge.} ({Predecessor:} 9. Be2 Bb7 10. O-O Nbd7 11. Rc1 a6 12. Qc2 Bd6 13. Rfd1 Qe7 14. h3 Ne4 15. Nxe4 dxe4 {1-0 (31) Boruchovsky,A (2538)-Katz,A (2444) Chess.com INT 2019}) 9... Bd6 {[%emt 0:00:00]} 10. f4 {[%emt 0:14:42]} (10. Bb5 $11) 10... c5 {[%emt 0:00:43]} (10... Bb4 $15) 11. Bb5 $11 {[%emt 0:07:02]} Re7 {[%emt 0:09:49]} 12. O-O {[%emt 0:01:13]} Bb7 {[%emt 0:00:39]} 13. Bd3 {[%emt 0:09:34]} a6 {[%emt 0:01:01] Inhibits Nb5.} (13... cxd4 $11 {remains equal.} 14. exd4 Nc6) 14. Ne2 {[%emt 0:06:07][%cal Bc3e2,Be2g3,Bg3h5,Bh5f6][%mdl 32]} (14. Na4 $5 {[%cal Rd1c2]}) 14... Nc6 {[%emt 0:01:22]} 15. Ng3 {[%emt 0:00:33]} Re8 {[%emt 0:04:49]} ({Black should try} 15... Rc7 $14) 16. Nh5 $1 $16 {[%emt 0:05:41]} g6 {[%emt 0:03:55]} (16... cxd4 $16 {was worth a try.} 17. Nxf6+ Qxf6) 17. Nxf6+ $1 $18 {[%emt 0:01:10]} Qxf6 {[%emt 0:00:06]} 18. Ng4 $1 {[%emt 0:07:20]} Qg7 {[%emt 0:00:12]} 19. f5 $1 {[%emt 0:00:46] Black must now prevent fxg6.} (19. dxc5 $6 Qxb2 20. cxd6 f5 21. Nh6+ (21. Bxf5 gxf5 22. Nh6+ Kh8 $11) 21... Kh8 $14) 19... Kh8 $2 {[%emt 0:04:58]} (19... cxd4 $16 {was necessary.} 20. fxg6 hxg6) 20. fxg6 {[%emt 0:02:18]} fxg6 {[%emt 0:01:02]} 21. Rf6 {[%emt 0:01:07]} (21. dxc5 Bxh2+ 22. Kxh2 Qxb2 $16) 21... Rad8 {[%emt 0:03:12]} 22. dxc5 {[%emt 0:09:03]} Bxc5 {[%emt 0:02:45] [#]} (22... bxc5 $16 {is a better defense.} 23. Qf1 d4) 23. Rf8+ $2 {[%emt 0:00:42]} Rxf8 $11 {[%emt 0:00:13]} 24. Bxg7+ {[%emt 0:00:04]} Kxg7 {[%emt 0:00:06]} 25. Qd2 {[%emt 0:03:53]} h5 $1 {[%emt 0:01:50] Active counter play!} 26. Nf2 {[%emt 0:04:11]} Rde8 {[%emt 0:01:34][%mdl 1024] Black has compensation.} 27. Re1 {[%emt 0:01:52]} d4 {[%emt 0:01:36][%cal Rd4e3]} 28. Qb2 {[%emt 0:00:42]} (28. e4 $1 $11) 28... Nb4 $1 $17 {[%emt 0:10:24][%cal Of8f2] aiming for ...Rxf2!} 29. Bb1 {[%emt 0:04:23]} (29. Be2 $17 {might work better.} Rxe3 30. a3) 29... Kh7 {[%emt 0:00:57]} (29... Kh6 $1 $19 {is more deadly.} 30. Qc1 dxe3) 30. Nd3 $2 {[%emt 0:01:34]} (30. Qe2 $17 {was forced.} Re5 31. a3 dxe3 32. Ng4 (32. Nd3 $2 Nxd3 33. Bxd3 Rf2 $19) 32... hxg4 33. axb4) 30... Nxd3 $19 {[%emt 0:03:13]} 31. Bxd3 {[%emt 0:00:03] Strongly threatening b4.} dxe3 $40 {[%emt 0:00:10][%mdl 128] Black attacks with force.} 32. b4 $2 {[%emt 0:01:11]} (32. Qe2 Re5 33. Kh1 Rg5 34. Bxa6 Bxg2+ 35. Qxg2 Rxg2 36. Kxg2 Rf2+ 37. Kh1 Rxa2 $19) (32. Kh1 Be4 33. Bxe4 Rxe4 34. Qe2) 32... Rf2 $1 {[%emt 0:00:13]} 33. Re2 {[%emt 0:00:04] [#]} Ref8 $2 {[%emt 0:01:00]} (33... Rxe2 $2 34. Qxe2 Bf3 35. gxf3 $18) (33... Rxg2+ $1 {[%mdl 512]} 34. Rxg2 e2+ 35. bxc5 e1=Q+ 36. Bf1 Bxg2 37. Qxg2 bxc5) 34. Qb1 $2 {[%emt 0:00:45]} ({Don't blunder} 34. Bxg6+ $2 Kh6 $19) (34. Qc1 {only move.} Bd4 35. h3) 34... Bd4 $1 {[%emt 0:03:12][%cal Of2g2]} 35. Rxf2 {[%emt 0:00:58]} (35. Qc1 $19 Be4 36. Bxa6) 35... Rxf2 {[%emt 0:02:28]} ({Not} 35... exf2+ 36. Kf1 Rf6 37. Qd1 $16) 36. Bxg6+ {[%emt 0:00:23]} Kh8 {[%emt 0:00:46]} (36... Kg8 $142 37. Bf7+ Kf8 38. Qc1 Rc2 $3 {[%mdl 512]} 39. Kf1 e2+ 40. Ke1 Bc3+ 41. Qd2 Rxd2 42. Kf2 Rc2 43. Bd5 e1=Q+ 44. Kf3 Bxd5+ 45. Kf4 Qe5#) 37. Qd3 {[%emt 0:00:33]} Rxg2+ {[%emt 0:00:06]} 38. Kf1 {[%emt 0:00:04]} e2+ {[%emt 0:00:06]} 39. Ke1 {[%emt 0:00:07]} Bf6 {[%emt 0:00:44] ( -> ...Bh4+). This bishop pair is nice.} 40. Qh3 {[%emt 0:01:16] [#] Prevents Bh4+.} Bf3 $1 {[%emt 0:01:59][%cal Rf6c3]} ({Inferior is} 40... Rxg6 41. Qf5 Bc3+ 42. Kxe2 $17) 41. Qc8+ {[%emt 0:01:33]} Kg7 {[%emt 0:00:00] Black mates.} 42. Qd7+ {[%emt 0:00:18]} Kh6 {[%emt 0:00:00]} 43. Qh7+ {[%emt 0:01:16]} Kg5 {[%emt 0:00:00][%cal Rf6c3]} 44. h4+ {[%emt 0:04:23]} Kxh4 {[%emt 0:00:00][%cal Rf6c3]} 45. Qc7 {[%emt 0:01:35]} Rg1+ {[%emt 0:00:00] What a bad dream for White.  Weighted Error Value: White=0.65/Black=0.63} 0-1

[Event "GER-ch Youth-U18 2022"]
[Site "Willingen"]
[Date "2022.06.05"]
[Round "2.5"]
[White "Mankel, Luca"]
[Black "Colbow, Collin"]
[Result "0-1"]
[ECO "E11"]
[WhiteElo "2010"]
[BlackElo "2360"]
[Annotator "TA"]
[PlyCount "106"]
[EventDate "2022.06.05"]
[EventType "swiss"]
[EventRounds "9"]
[EventCountry "GER"]
[SourceTitle "playchess.com"]
[Source "ChessBase"]
[SourceQuality "1"]
[TimeControl "40/4500+30:900+30"]

{[%evp 23,106,49,51,54,57,44,79,13,12,3,25,-32,-33,-15,-31,-75,-75,-145,-147,-138,-135,-135,-60,-170,-166,-175,-94,-143,-142,-165,-148,-246,-243,-248,-235,-391,-453,-29978,-29979,-29978,-624,-617,-597,-568,-548,-518,-515,-496,-486,-5306,-88,-127,-87,-87,-102,-1368,-326,-305,0,-1123,0,-149,0,0,0,0,0,-1,-2,-685,-595,-29971,-29972,-29977,-9447,-2053,0,0,0,-29978,-29979,-29979,-29980,-29978,-29977]} 1. d4 {[%emt 0:00:00]} Nf6 {[%emt 0:00:00]} 2. c4 {[%emt 0:00:00]} e6 {[%emt 0:00:00]} 3. Nf3 {[%emt 0:00:00]} Bb4+ {[%emt 0:00:00]} 4. Nbd2 {[%emt 0:00:00]} b6 {[%emt 0:00:00]} 5. a3 {[%emt 0:00:00]} Bxd2+ {[%emt 0:00:00]} 6. Qxd2 {[%emt 0:00:00]} Bb7 {[%emt 0:00:00]} 7. e3 {[%emt 0:00:00]} d6 {[%emt 0:00:00]} 8. Be2 {[%emt 0:00:00]} O-O {[%emt 0:00:00]} 9. O-O {[%emt 0:00:00]} Nbd7 {[%emt 0:00:00]} 10. b4 {[%emt 0:00:00]} Qe7 {[%emt 0:00:00]} 11. Bb2 {[%emt 0:00:00]} Ne4 {[%emt 0:09:26]} 12. Qc2 {[%emt 0:00:00]} f5 {[%emt 0:04:41]} 13. d5 {[%emt 0:02:08] E14: Queen's Indian: Classical Variation (4 e3).} exd5 {[%emt 0:04:07]} 14. cxd5 {[%emt 0:01:54]} Ndf6 {[%emt 0:12:10]} 15. Nd4 {[%emt 0:03:23]} ({White should try} 15. Rac1 $16) 15... Nxd5 $11 {[%emt 0:16:57] [#]} 16. Bc4 $146 {[%emt 0:09:22] Strongly threatening Qb3. A strong pair of Bishops.} ({Predecessor:} 16. f3 Ng5 17. Bc4 Rf7 18. Nxf5 Qd7 19. e4 b5 20. Bb3 Kf8 21. h4 Rxf5 22. hxg5 {1-0 (28) Korobov,A (2693)-Zochowski,K (2120) Wroclaw 2014}) 16... Kh8 {[%emt 0:06:27]} 17. Bxd5 {[%emt 0:02:02]} (17. Ne2 $11) 17... Bxd5 $15 {[%emt 0:00:49]} 18. f3 {[%emt 0:00:14]} c5 $1 {[%emt 0:02:12]} 19. fxe4 {[%emt 0:01:37]} Bxe4 {[%emt 0:00:25]} 20. Nxf5 {[%emt 0:03:51]} (20. Qd2 $142 cxd4 21. Qxd4) 20... Rxf5 $17 {[%emt 0:00:40]} (20... Bxc2 $2 21. Nxe7 Bd3 22. Rfd1 $18) 21. Qc3 {[%emt 0:04:15]} Qg5 $36 {[%emt 0:09:59][%csl Ge4][%cal Rg5g2][%mdl 2048] Black is in control.} 22. g3 {[%emt 0:01:32]} Bf3 {[%emt 0:02:50] Black is more active.} (22... Rg8 $17 23. Rxf5 Qxf5) 23. Rf2 {[%emt 0:02:51]} (23. Rad1 $15) 23... Raf8 $19 {[%emt 0:01:52]} 24. Raf1 {[%emt 0:01:08]} Qg4 {[%emt 0:03:50]} ({Black should play} 24... h5 $19 {White must now prevent ...d5.} 25. Qd2 d5) 25. Qd2 {[%emt 0:03:13]} (25. Qd3 $142) 25... Qg6 $1 $17 {[%emt 0:08:46]} 26. bxc5 {[%emt 0:01:42]} bxc5 {[%emt 0:00:12]} (26... dxc5 $2 27. Rxf3 $1 {[%mdl 512]} Rxf3 28. Rxf3 Qb1+ 29. Bc1 $18) 27. Qa5 {[%emt 0:00:16]} (27. Qd3 $17 Qe6 28. Qc3) 27... h5 $19 {[%emt 0:01:20][%cal Bh7h5,Bh5h4,Bh4g3][%mdl 32]} 28. e4 {[%emt 0:05:25]} R5f7 {[%emt 0:00:41] aiming for ...h4.} 29. e5 $2 {[%emt 0:02:11]} (29. Qc3 {was forced.} Bxe4 30. Rxf7 Rxf7 31. Rxf7 Qxf7 32. h3) 29... h4 {[%emt 0:00:56]} 30. Qc3 {[%emt 0:00:06] [#]} (30. Qa4 $19 c4 31. Qxc4) 30... hxg3 $1 {[%emt 0:01:12]} 31. Rxf3 {[%emt 0:00:10]} Rxf3 {[%emt 0:00:18]} (31... Qh5 $142 32. h3 Rxf3 33. Rxf3 Rxf3 34. Kg2 Rxc3 35. Bxc3 Qe2+ 36. Kxg3 Qd3+ 37. Kh4 Qxc3 38. e6 Qe1+ 39. Kg5 c4 40. h4 c3 41. e7 Qxe7+ 42. Kf4 c2 43. h5 c1=Q+ 44. Kf3 Qee3+ 45. Kg4 Qc4+ 46. Kf5 Qce6#) 32. Rxf3 {[%emt 0:00:49]} Rxf3 {[%emt 0:00:08]} 33. Qxf3 {[%emt 0:00:05]} Qb1+ {[%emt 0:00:03]} 34. Kg2 {[%emt 0:04:20]} Qxb2+ {[%emt 0:00:03]} 35. Kxg3 {[%emt 0:00:05]} Qxe5+ {[%emt 0:00:04][%mdl 4096] Endgame KQ-KQ} 36. Kg4 {[%emt 0:00:38]} (36. Kg2 $142 Kh7 37. Qd3+ Kh6 38. Qc4) 36... d5 $2 {[%emt 0:00:40]} (36... c4 $19 {and Black stays clearly on top.} 37. Kh3 c3) 37. Qf8+ $17 {[%emt 0:00:32]} Kh7 {[%emt 0:00:03]} 38. Qxc5 {[%emt 0:00:06]} Qe4+ {[%emt 0:00:55]} 39. Kg5 $2 {[%emt 0:00:57][%mdl 8192]} (39. Kg3 $17) 39... Qg2+ $2 {[%emt 0:00:58]} (39... d4 {...d3 is the strong threat.} 40. Qb4 Qe3+ 41. Kg4 d3) 40. Kf5 {[%emt 0:00:12]} Qe4+ {[%emt 0:01:39]} ({Weaker is} 40... Qxh2 41. Qxa7 Qc2+ 42. Kg4 $17) (40... a5 41. Qc6 Qe4+ 42. Kg5 Qe3+ 43. Kg4 Qe2+ 44. Kg3 Qe5+ 45. Kg4 Qe4+ 46. Kg5 a4) 41. Kg5 $19 {[%emt 0:15:02]} Qg2+ $2 {[%emt 0:00:00]} (41... d4 $19 {has better winning chances. And now ...d3 would win.} 42. Qb4 Qe3+ 43. Kg4 d3) 42. Kf5 $17 {[%emt 0:00:00]} Qxh2 {[%emt 0:00:00]} (42... g6+ $17 43. Kf6 Qf3+ 44. Kg5 Qh5+ 45. Kf6 Qh4+ 46. Ke6 Qe4+ 47. Kf6 Qf4+ 48. Ke6 d4) 43. Qxa7 $11 {[%emt 0:00:00]} Qc2+ {[%emt 0:00:00]} 44. Kg5 {[%emt 0:00:00]} Qg6+ {[%emt 0:00:00]} 45. Kf4 {[%emt 0:00:00]} Qe4+ {[%emt 0:00:00]} 46. Kg5 $2 {[%emt 0:00:00][%mdl 8192] [#]} (46. Kg3 $11) 46... d4 $1 $19 {[%emt 0:00:00] ( -> ...d3)} 47. Qd7 {[%emt 0:00:00] [#]} d3 $1 {[%emt 0:00:00]} ({Wrong is} 47... Qg2+ $2 48. Kf4 $19) 48. a4 {[%emt 0:00:00]} Qe3+ {[%emt 0:16:04]} (48... Qf3 $142 49. Qd6 Qf6+ 50. Qxf6 gxf6+ 51. Kf5 d2 52. Ke6 d1=Q 53. a5 Qa4 54. a6 Qxa6+ 55. Kd5 f5 56. Kd4 f4 57. Kd5 f3 58. Ke4 f2 59. Kf5 f1=Q+ 60. Ke5 Qff6+ 61. Ke4 Qc4+ 62. Ke3 Qff4#) 49. Kg4 {[%emt 0:00:00]} d2 $2 {[%emt 0:00:39]} (49... Qe2+ $19 50. Kf4 Qf2+ 51. Kg4 Qe2+ 52. Kf4 Qf2+ 53. Kg4 d2 54. Qd3+ g6 55. Qh3+ Kg7 56. Qc3+ Kf7 57. Qb3+ Ke7 58. Qb7+ Ke6 59. Qc6+ Ke5 60. Qe8+ Kd4 61. Qd8+ Kc4 62. Qg8+ Kd3 63. Qxg6+ Ke2 64. Qe4+ Qe3 65. Qg2+ Qf2 66. Qe4+ Qe3 67. Qc4+ Kf2 68. Kf5 d1=Q 69. Qh4+ Kg1 70. Qg4+ Qxg4+ 71. Kxg4 Qe5 72. Kf3 Kf1 73. a5 Qxa5 74. Ke4 Kf2 75. Kd4 Qb5 76. Ke4 Qc5 77. Kd3 Qb4 78. Kc2 Ke3 79. Kc1 Kd3 80. Kd1 Qd2#) 50. Qf5+ $11 {[%emt 0:00:00]} Kg8 {[%emt 0:00:05]} (50... Kh8 51. Qh5+ Kg8 52. Qd5+ Kf8 53. Qd8+ Kf7 54. Qc7+ Kf6 55. Qd8+ Kg6 56. Qd6+ Kf7 57. Qc7+ Ke6 58. Qc8+ Kd6 59. Qb8+ Ke7 60. Qc7+ Kf6 61. Qd8+ Ke5 62. Qe7+ Kd4 63. Qb4+ Kd3 64. Qb3+ Ke2 65. Qb5+ Qd3 66. Qe8+ Kf1 67. Qf8+ Kg2 68. Qa8+ Kg1 69. Qa7+ Kf1 70. Qf7+ Ke1 71. Qe6+ Qe2+ 72. Qxe2+ Kxe2 73. Kf5 d1=Q 74. a5 Qd5+ 75. Kg6 Qxa5 76. Kh7 g5 77. Kh6 g4 78. Kg6 Qe5 79. Kf7 g3 80. Kf8 g2 81. Kg8 g1=Q+ 82. Kh7 Qh5#) 51. Qc8+ $2 {[%emt 0:00:00][%mdl 8192]} (51. Qd5+ $11 Kf8 52. Qd8+ Kf7 53. Qd7+ Kf6 54. Qd8+ Ke5 55. Qe8+ Kd4 56. Qd7+ Kc4 57. Qb5+ Kc3 58. Qb1 Qd4+ 59. Kf3 d1=Q+ 60. Qxd1 Qxd1+ 61. Kf4 Qxa4+ 62. Kf5 Qe8 63. Kg4 Qe4+ 64. Kg3 Kd4 65. Kh2 Ke3 66. Kg1 Kf3 67. Kh2 Qc2+ 68. Kh3 Qh7#) 51... Kf7 {[%emt 0:00:02] Black mates.} 52. Qd7+ {[%emt 0:00:00]} Kf6 {[%emt 0:00:03]} 53. Qd8+ {[%emt 0:00:00]} Ke5 {[%emt 0:00:56] Weighted Error Value: White=1.13/Black=1.00} 0-1

[Event "GER-ch Youth-U18 2022"]
[Site "Willingen"]
[Date "2022.06.05"]
[Round "2.6"]
[White "Weishaeutel, Moritz"]
[Black "Muller, Magnus"]
[Result "1-0"]
[ECO "B10"]
[WhiteElo "2406"]
[BlackElo "1464"]
[Annotator "TA"]
[PlyCount "81"]
[EventDate "2022.06.05"]
[EventType "swiss"]
[EventRounds "9"]
[EventCountry "GER"]
[SourceTitle "playchess.com"]
[Source "ChessBase"]
[SourceQuality "1"]
[TimeControl "40/4500+30:900+30"]

{[%evp 9,81,0,10,12,8,7,10,11,11,11,11,11,15,4,5,5,6,6,6,0,9,6,8,9,8,6,16,6,12,0,9,4,9,10,12,6,21,0,21,0,0,0,31,0,38,46,43,39,84,81,104,59,86,101,118,63,212,211,302,293,402,395,429,423,441,429,1642,1607,12828,12821,5014,1645,12841,12842]} 1. e4 {[%emt 0:00:00]} c6 {[%emt 0:00:00]} 2. Nc3 {[%emt 0:00:00]} d5 {[%emt 0:00:00]} 3. Qf3 {[%emt 0:00:00]} dxe4 {[%emt 0:00:00]} 4. Nxe4 {[%emt 0:00:00]} Nf6 {[%emt 0:00:00]} 5. c3 {[%emt 0:00:00]} Nxe4 {[%emt 0:00:00]} 6. Qxe4 {[%emt 0:00:00] B11: Caro-Kann: Two Knights Variation.} Qd5 {[%emt 0:00:00] [#]} 7. Bd3 $146 {[%emt 0:00:00]} ({Predecessor:} 7. Qxd5 cxd5 8. d4 Bf5 9. Nf3 Nc6 10. Nh4 Bd7 11. f4 e6 12. Bd3 Bd6 13. O-O {½-½ (55) Torgersen,T (2263)-Rasmussen,E (2315) ICCF email 2019}) 7... Be6 {[%emt 0:00:01]} 8. Ne2 {[%emt 0:00:00][%cal Bg1e2,Be2f4,Bf4h3,Bh3f2][%mdl 32] The position is equal.} Qxe4 {[%emt 0:00:46]} 9. Bxe4 {[%emt 0:00:00]} Bd5 {[%emt 0:00:05]} 10. d3 {[%emt 0:00:00]} Nd7 {[%emt 0:00:16]} 11. Nf4 {[%emt 0:00:00]} Bxe4 {[%emt 0:00:18]} 12. dxe4 {[%emt 0:00:00]} Nc5 {[%emt 0:00:47]} 13. f3 {[%emt 0:04:21]} e5 {[%emt 0:00:05]} 14. Nh3 {[%emt 0:00:51]} O-O-O {[%emt 0:03:51]} 15. Ke2 {[%emt 0:02:34]} f6 {[%emt 0:03:44]} 16. Nf2 {[%emt 0:05:05]} Be7 {[%emt 0:07:58]} 17. Be3 {[%emt 0:00:36]} Kc7 {[%emt 0:00:51]} 18. Rhd1 {[%emt 0:03:03]} b6 {[%emt 0:00:41]} 19. Nd3 {[%emt 0:04:02]} (19. h4 {seems wilder.} a5 20. g3 b5 21. Rxd8 Rxd8 22. Rc1) 19... Nxd3 {[%emt 0:00:15]} 20. Rxd3 {[%emt 0:00:01]} Rxd3 {[%emt 0:00:07]} 21. Kxd3 $11 {[%emt 0:00:05][%mdl 4096] Endgame KRB-KRB} Rd8+ {[%emt 0:00:07]} 22. Ke2 {[%emt 0:00:56]} c5 {[%emt 0:00:16]} 23. h4 {[%emt 0:05:05]} Kc6 {[%emt 0:11:07]} 24. g4 {[%emt 0:04:28]} c4 {[%emt 0:01:17]} 25. g5 {[%emt 0:04:28]} Bc5 {[%emt 0:01:18]} 26. Bxc5 {[%emt 0:03:01]} Kxc5 {[%emt 0:02:01]} 27. gxf6 {[%emt 0:00:14]} gxf6 $14 {[%emt 0:00:04] KR-KR} 28. Rg1 {[%emt 0:00:05] Inhibits Rg8. Strongly threatening Rg7.} Rd7 {[%emt 0:00:11] Inhibits Rg7.} 29. Rg8 {[%emt 0:00:27]} Rf7 {[%emt 0:04:24]} 30. h5 {[%emt 0:07:30]} b5 {[%emt 0:04:29]} 31. h6 {[%emt 0:01:33] aiming for Rg7.} Kd6 {[%emt 0:01:17] [#]} 32. Ke3 {[%emt 0:05:14]} (32. Rb8 $1 $16) 32... a5 {[%emt 0:04:29] Loses the game.} ({Black should try} 32... Rb7 $14) 33. Ra8 $18 {[%emt 0:05:49]} a4 {[%emt 0:01:37] [#]} (33... Rb7 $142 34. Rxa5 Ke6) 34. Ra6+ $1 {[%emt 0:00:35]} Kc5 {[%emt 0:00:14]} 35. a3 {[%emt 0:00:17]} f5 {[%emt 0:00:55]} 36. exf5 {[%emt 0:00:09] And now Ke4 would win. White is clearly winning.} Rxf5 {[%emt 0:00:03]} 37. Ra7 {[%emt 0:00:19]} Rh5 {[%emt 0:00:03]} (37... Kd5 $142 38. Rxh7 Ke6) 38. Rxh7 {[%emt 0:00:04]} Rh2 {[%emt 0:00:05]} 39. Rh8 {[%emt 0:00:16]} Kb6 {[%emt 0:00:21]} 40. h7 {[%emt 0:00:48] Rb8+ would kill now.} Kc7 {[%emt 0:00:03] Inhibits Rb8.} 41. Ra8 {[%emt 0:15:08] Weighted Error Value: White=0.06 (flawless) /Black=0.26 (precise)} 1-0

[Event "GER-ch Youth-U18 2022"]
[Site "Willingen"]
[Date "2022.06.05"]
[Round "2.7"]
[White "Boder, Jan"]
[Black "Weidemann, Jakob"]
[Result "0-1"]
[ECO "A20"]
[WhiteElo "2334"]
[BlackElo "2047"]
[Annotator "TA"]
[PlyCount "92"]
[EventDate "2022.06.05"]
[EventType "swiss"]
[EventRounds "9"]
[EventCountry "GER"]
[SourceTitle "playchess.com"]
[Source "ChessBase"]
[SourceQuality "1"]
[TimeControl "40/4500+30:900+30"]

{[%evp 9,91,9,45,-11,-10,-25,44,-36,72,82,91,87,169,65,86,65,83,34,108,107,164,164,169,172,181,190,183,199,178,181,200,145,147,-393,-356,-346,-364,-336,-358,-372,-354,-349,-324,-510,-508,-502,-480,-555,-558,-552,-550,-550,-543,-541,-542,-415,-534,-527,-520,-516,-497,-484,-469,-505,-497,-600,-562,-818,-819,-818,-658,-868,-646,-5700,-5700,-5683,-4918,-5514,-5073,-29986,-29987,-29998,-29999,-29999]} 1. c4 {[%emt 0:00:00]} e5 {[%emt 0:00:00]} 2. g3 {[%emt 0:00:00]} c6 {[%emt 0:00:00]} 3. d4 {[%emt 0:00:00]} e4 {[%emt 0:00:00]} 4. d5 {[%emt 0:00:00]} cxd5 {[%emt 0:00:00]} 5. cxd5 {[%emt 0:00:00]} Bb4+ {[%emt 0:02:26]} 6. Nc3 {[%emt 0:00:00] A20: English Opening: 1...e5.} (6. Bd2 $14 Qe7 7. Qc2) 6... Nf6 $11 {[%emt 0:15:33]} 7. Qd4 {[%emt 0:06:24]} Qa5 {[%emt 0:11:37]} (7... Bxc3+ $11 8. bxc3 d6) 8. Bg5 {[%emt 0:03:08] [#]} (8. Bd2 $14) 8... Nxd5 $146 {[%emt 0:04:21]} (8... Bxc3+ $15 {stays ahead.} 9. Qxc3 (9. bxc3 Nc6 $11) 9... Qxc3+ 10. bxc3 Nxd5) ({Predecessor:} 8... O-O 9. Bxf6 gxf6 10. Bg2 f5 11. Nh3 d6 12. O-O Nd7 13. Qd2 Qd8 14. a3 Ba5 {1-0 (26) Lalic,B (2527)-Csom,E (2145) Bergamo 2004}) 9. Qxg7 $16 {[%emt 0:07:19]} ({Much weaker is} 9. Qxe4+ $6 Ne7 10. Bd2 d5 $15) 9... Rf8 {[%emt 0:02:21][%cal Rd5c3]} (9... Bxc3+ $2 10. bxc3 Qxc3+ 11. Qxc3 Nxc3 12. Rc1 $18) 10. Bd2 {[%emt 0:02:36]} Nc6 {[%emt 0:08:13]} (10... Nxc3 $16 11. bxc3 Be7) 11. Rd1 {[%emt 0:05:39]} ({White should play} 11. Nxe4 $18 {aiming for Nf3.} Bxd2+ 12. Nxd2) 11... Nxc3 $14 {[%emt 0:06:51]} 12. bxc3 {[%emt 0:01:22]} Be7 {[%emt 0:00:38]} 13. Qxh7 {[%emt 0:02:32]} (13. Bg2 $16) 13... d5 {[%emt 0:00:43] [#]} ({Better is} 13... Qe5 $1 $14) 14. Bh3 $1 $16 {[%emt 0:03:13]} Bf6 {[%emt 0:05:57]} (14... Be6 $16 {was necessary.}) 15. Bxc8 $18 {[%emt 0:01:35]} Rxc8 {[%emt 0:00:07]} 16. Qf5 $1 {[%emt 0:00:40][%csl LRc8,LRf6]} Ke7 {[%emt 0:00:10]} 17. c4 {[%emt 0:03:20]} Bc3 {[%emt 0:06:50]} 18. cxd5 {[%emt 0:03:07]} Bxd2+ {[%emt 0:02:07]} 19. Rxd2 {[%emt 0:01:18]} Rfd8 {[%emt 0:00:21]} 20. Qxe4+ {[%emt 0:01:27]} Kf8 {[%emt 0:01:44][%cal Oc6d4] And now ...Nd4! would win.} 21. Nf3 {[%emt 0:00:03][%mdl 8192] [#] Against Nd4. This move loses the game for White.} (21. Qh7 $16 {and life is bright.}) 21... Nd4 $1 {[%emt 0:00:16][%cal Rc8c1][%mdl 512]} 22. O-O {[%emt 0:24:45]} Nxf3+ {[%emt 0:00:10][%mdl 64] Remove Defender} 23. Qxf3 {[%emt 0:00:04]} Qxd2 {[%emt 0:00:12]} 24. e4 {[%emt 0:00:03]} Qc3 {[%emt 0:02:39]} 25. Qf4 {[%emt 0:05:49]} Re8 {[%emt 0:01:10]} 26. d6 {[%emt 0:01:05]} (26. Rd1 $142) 26... Re6 $19 {[%emt 0:02:38]} 27. d7 {[%emt 0:05:03]} Rd8 {[%emt 0:00:38]} 28. Rc1 {[%emt 0:02:26]} Qe5 {[%emt 0:01:23]} 29. Qh4 {[%emt 0:03:04]} Rxd7 {[%emt 0:02:13]} 30. Rc8+ {[%emt 0:00:28]} Re8 {[%emt 0:00:09]} 31. Qh6+ {[%emt 0:00:08]} Kg8 {[%emt 0:00:11]} 32. Rxe8+ {[%emt 0:02:29]} Qxe8 {[%emt 0:00:09]} 33. Qg5+ {[%emt 0:00:02]} Kf8 {[%emt 0:00:24]} 34. Qh6+ {[%emt 0:01:26] [#]} Ke7 $1 {[%emt 0:00:48]} 35. h4 {[%emt 0:01:13]} Kd8 {[%emt 0:04:03]} 36. Qf4 {[%emt 0:00:01]} Qe6 {[%emt 0:01:12]} 37. h5 {[%emt 0:00:38]} f6 {[%emt 0:03:42]} 38. h6 {[%emt 0:00:30]} Qe5 {[%emt 0:01:11]} 39. Qg4 {[%emt 0:00:05] Prevents Rd1+.} Qg5 {[%emt 0:00:57]} 40. Qe6 {[%emt 0:00:19]} Qxh6 {[%emt 0:00:26]} 41. Qg8+ {[%emt 0:00:00]} Ke7 {[%emt 0:00:00]} 42. Qb3 {[%emt 0:00:00] Prevents Rd1+.} Qd2 {[%emt 0:00:00]} 43. Qa3+ {[%emt 0:00:00]} Ke8 {[%emt 0:00:00] ( -> ...Qd1+)} 44. Qxa7 {[%emt 0:00:00]} Qe1+ {[%emt 0:00:00] Black mates.} 45. Kh2 {[%emt 0:00:00]} Rh7+ {[%emt 0:00:00]} 46. Kg2 {[%emt 0:00:00]} Qh1# {[%emt 0:00:00] Weighted Error Value: White=0.52/Black=0.22 (precise)} 0-1